{"text_format":"2","workbook":"xlsx","n_sheets":8,"sheets":["Escala y Tipo Proyectos","Proyectos SA 2019-2025","Sectoral Scope","Metodologias","Selecc Metod 1","Selecc Metod 2","Selecc Metod 3","Selecc Metod 4"],"not_rendered":{"charts":0,"images":0,"macros":0,"external_links":10,"defined_names":227,"comments":0,"pivot_tables":0},"unopened":[],"bounds":{"document_bytes":16777216,"sheet_cells":100000,"run_cost":"one","rows_first":2000,"rows_last":500,"rows_between":2000,"halvings":0,"cell_chars":16384,"cell_head_chars":4096},"cells_cut":0,"cells_raw":0,"read":"whole","date_system":"1900"}

{"sheet":"Escala y Tipo Proyectos","index":0,"n_rows":33,"n_cols":9,"rows_kept":33,"cut":false,"hidden":false,"merged":[[25,7,26,7],[32,1,33,8],[30,1,31,8],[3,6,7,6],[8,6,28,6],[3,8,7,8],[3,7,5,7],[10,7,11,7],[13,7,19,7],[21,7,23,7]]}
[]
[]
[null,"Sistema","Demanda \nMáxima      (kW)","Número de \nConsumidores","Combustible","Potencia Instalada (MW)",null,"Metodología aplicable al Proyecto (*)","Metodología aplicable línea de base"]
[null,"Cobija",12360,17092,"Diesel/Solar",27.660000000000004,"> a 15 MW",null,"AM0045, gran escala"]
[null,"German Busch",10252.709999999999,10771,"Gas",23.199999999999996]
[null,"Las Misiones",11739.855209350586,28263,"Diesel / Gas",21.349999999999994]
[null,"Guayaramerín",5140,9030,"Diesel",17.254999999999995,null,"AMS-I.A"]
[null,"Riberalta",9824,21407,"Diesel",16.12,null,"AMS-I.A"]
[null,"Bermejo",6100,12941,"Gas",14.443999999999999,"<= a 15 MW","AM0045, gran escala","AM0045 (**)"]
[null,"Cordillera/Camiri",6377.9699999999993,14957,"Gas",12.673999999999999,null,"AM0045, gran escala","AM0045 (**)"]
[null,"Valles Cruceños",6340.8040000000001,23104,"Gas",11.637999999999998,null,null,"AMS-I.A"]
[null,"San Matías",1676.7,2875,"Gas",8.68,null,null,"AMS-I.A"]
[null,"San Ignacio de Velasco",5050.6779999999999,12184,"Diesel",7.84,null,"AM0045, gran escala","AM0045 (**)"]
[null,"Chiquitos",4380.2179999999998,8470,"Gas",7.54,null,null,"AMS-I.A"]
[null,"Entre Ríos",1700,5436,"Gas",2.6999999999999997,null,null,"AMS-I.A"]
[null,"Charagua",1107,3253,"Gas",2.5539999999999998,null,null,"AMS-I.A"]
[null,"El Sena",673,976,"Diesel/Solar",2.2160000000000002,null,null,"AMS-I.A"]
[null,"Gonzalo Moreno","Sin datos",20,"Diesel",2.2160000000000002,null,null,"AMS-I.A"]
[null,"EL Puente","Sin datos","Sin datos","Gas",1.92,null,null,"AMS-I.A"]
[null,"Baures",210,953,"Diesel",1.8100000000000003,null,null,"AMS-I.A"]
[null,"Bella Vista",202,702,"Diesel",1.4260000000000002,null,"AMS-I.A","AMS-I.A"]
[null,"Villa Nueva",0,196,"Diesel",1.35,null,null,"AMS-I.A"]
[null,"Rosario del Yata",48,148,"Diesel",0.96640000000000004,null,null,"AMS-I.A"]
[null,"Cachuela Esperanza",47,148,"Diesel",0.64700000000000002,null,null,"AMS-I.A"]
[null,"Huacaraje",159,505,"Diesel",0.46400000000000002,null,"AMS-I.A","AMS-I.A"]
[null,"Exaltación",74,159,"Diesel",0.28000000000000003,null,null,"AMS-I.A"]
[null,"Puerto Ustarez",8.91,38,"Diesel",0.188,null,null,"AMS-I.A"]
[null,"El Carmen de Itenez",77.3,218,"Diesel",0.128,null,"AMS-I.A","AMS-I.A"]
[null,"El Espino",31.62,133,"Diesel/Solar",0.124,null,null,"AMS-I.A"]
[null,"Totales",{"$f":"SUM(C4:C29)","v":83580.765209350575},{"$f":"SUM(D4:D29)","v":173979},null,187.39039999999994]
[null,"(*) Los proyectos solares son de pequeña escala; en el caso de Riberalta y Guayaramerin por criterio conservador para el calculo utilizamos la metodologia AM0045 en la Línea de Base"]
[]
[null,"(**) Para poder calcular la reducción de emisiones del proyecto de interconexión (Una interconexión al SIN siempre será de gran escala), el calculo de línea de base del SA, debe ser calculado con la misma metodología"]

{"sheet":"Proyectos SA 2019-2025","index":1,"n_rows":39,"n_cols":17,"rows_kept":39,"cut":false,"hidden":false,"merged":[[5,16,6,16],[15,16,23,16],[27,16,36,16],[5,15,6,15],[15,15,23,15],[27,15,36,15],[5,13,6,13],[1,2,1,7],[2,2,2,7],[15,14,23,14],[27,14,36,14],[5,6,6,6],[5,7,6,7],[5,4,6,4],[5,8,6,12],[5,14,6,14]]}
[]
[null,null,"Sistemas Aislados"]
[null,null,"Proyectos Sistemas Aislados 2019-2025"]
[]
[null,1,2,3,4,5,6,8]
[{"$nulls":4},"Sistema Eléctrico",null,"Combustible","Central","Tipo de Proyecto",{"$nulls":4},"Fecha de Implementación","Mitigación","Tecnología","Metodología"]
[null,null,"Departamento","Provincia",null,"Empresa"]
[]
[null,1,"Pando","Nicolas Suarez","Cobija","ENDE","Diesel","Cobija"]
[null,2,"Pando","Madre de Dios","El Sena","ENDE","Diesel","El Sena"]
[null,3,"Pando","Madre de Dios","Puerto Gonzalo Moreno","ENDE","Diesel"]
[null,4,"Pando","Federico Roman","Municipio de Villa Nueva","ENDE","Diesel"]
[null,null,"Pando","Nicolas Suarez","Planta Solar Cobija","ENDE Guaracachi S.A.","Solar","Planta Solar Cobija"]
[null,null,"Pando","Madre de Dios","Planta Solar El Sena","ENDE Guaracachi S.A.","Solar","Planta Solar El sena"]
[{"$nulls":7},"Total Pando"]
[null,5,"Beni","Vaca Diez","Riberalta","CER Ltda.","Diesel","El Palmar","Planta Solar Riberalta",null,5000,"kWp",null,"2021-05-01","Energía renovable que desplaza a Energía Fósil intensiva en carbono","Centrales Fotovoltaicas / Energía Renovable","AMS-I.A"]
[null,6,"Beni","Vaca Diez","Guayaramerín","ENDE DELBENI S.A.M.","Diesel","Guayaramerín","Planta Solar Guayaramerín",null,2500,"kWp",null,"2021-05-01"]
[null,7,"Beni","Vaca Diez","Cachuela Esperanza","ENDE DELBENI S.A.M.","Diesel","Cachuela Esperanza"]
[null,8,"Beni","Vaca Diez","Rosario del Yata","ENDE DELBENI S.A.M.","Diesel","Rosario del Yata"]
[null,9,"Beni","Mamore","Puerto Ustárez","ENDE DELBENI S.A.M.","Diesel","Puerto Ustárez"]
[null,10,"Beni","Itenez","Baures","ENDE DELBENI S.A.M.","Diesel","Baures"]
[null,11,"Beni","Itenez","Bella Vista","ENDE DELBENI S.A.M.","Diesel","Bella Vista","Planta Solar Bella Vista",null,342,"kWp",null,"2021-05-01"]
[null,12,"Beni","Itenez","Huacaraje","ENDE DELBENI S.A.M.","Diesel","Huacaraje","Planta Solar Huacaraje",null,250,"kWp",null,"2021-05-01"]
[null,13,"Beni","Itenez","El Carmen","ENDE DELBENI S.A.M.","Diesel","El Carmen de Iténez","Planta Solar El Carmen del Itenez",null,175,"kWp",null,"2021-05-01"]
[null,14,"Beni","Yacuma","Exaltación","ENDE DELBENI S.A.M.","Diesel","Exaltación"]
[]
[null,15,"Santa Cruz","Angel Sandoval","San Matías","ENDE Guaracachi S.A.","Gas","San Matías"]
[null,16,"Santa Cruz","Cordillera","Camiri","CRE Ltda.","Gas","Cordillera","Conexión al SIN Camiri",null,"115 kV (Padilla - Monteagudo - Camiri)",null,null,"2021-04-01","Generación de electricidad baja en carbono - Desplazamiento de una generación más intensiva en GEI","Extensión de Líneas de Transmisión para la Interconexión a una RED mayor (SIN)","AM0045"]
[null,17,"Santa Cruz","Guarayos","Las Misiones","CRE Ltda.","Gas/Diesel","Las Misiones","Conexión al SIN Las Misiones",null,"230 kV (Los Troncos - Guarayos)",null,null,"2020-12-01"]
[null,18,"Santa Cruz","Chiquitos","Roboré y Santiago de Chiquitos","CRE Ltda.","Gas","Chiquitos"]
[null,19,"Santa Cruz","Jose Miguel de Velasco","San Ignacio de Velasco","CRE Ltda.","Diesel","San Ignacio de Velasco","Conexión al SIN San Ignacio",null,"230 kV (Los Troncos - San Ignacio)",null,null,"2023-11-01"]
[null,20,"Santa Cruz","Vallegrande","Valles Cruceños","CRE Ltda.","Gas","Valles"]
[null,21,"Santa Cruz","Cordillera","Charagua","CRE Ltda.","Gas","Charagua"]
[null,22,"Santa Cruz","German Bush","German Busch","CRE Ltda.","Gas","German Busch"]
[null,23,"Santa Cruz","Cordillera","El Espino","CRE Ltda.","Solar/Diesel","(1) El Espino"]
[]
[null,24,"Tarija","Aniceto Arce","Bermejo","SETAR","Gas","Bermejo ","Conexión al SIN Bermejo",null,"115 kV (Tarija - Bermejo)",null,null,"2021-10-01"]
[null,25,"Tarija","Burnet O'Connor","Entre Rios","SETAR","Gas","Entre Ríos "]
[null,26,"Tarija","Eustaquio Mendez","El Puente","Gas & Electricidad S.A.","Gas","El Puente"]

{"sheet":"Sectoral Scope","index":2,"n_rows":19,"n_cols":4,"rows_kept":19,"cut":false,"hidden":false,"merged":[[1,3,3,3],[1,1,3,1],[1,2,3,2]]}
[]
[null,"Scope Number","Sectoral Scope","Alcance por sectores"]
[]
[]
[null,1,"Energy industries (renewable - / non-renewable sources)","Industria Energética (Fuentes renovables y no renovables)"]
[null,2,"Energy distribution","Distribución de Energía"]
[null,3,"Energy demand","Demanda de Energía"]
[null,4,"Manufacturing industries"]
[null,5,"Chemical industries"]
[null,6,"Construction"]
[null,7,"Transport"]
[null,8,"Mining/mineral production"]
[null,9,"Metal production"]
[null,10,"Fugitive emissions from fuels (solid, oil and gas)"]
[null,11,"Fugitive emissions from production and consumption of halocarbons and sulphur hexafluoride"]
[null,12,"Solvent use"]
[null,13,"Waste handling and disposal"]
[null,14,"Afforestation and reforestation"]
[null,15,"Agriculture"]

{"sheet":"Metodologias","index":3,"n_rows":360,"n_cols":8,"rows_kept":360,"cut":false,"hidden":false,"merged":[[4,1,38,1],[4,2,38,2],[1,1,3,1],[1,2,3,2],[1,3,3,3],[1,6,3,6],[1,7,3,7],[39,1,61,1],[39,2,61,2],[39,5,61,5],[62,1,91,1],[62,2,91,2],[62,5,91,5],[92,1,119,1],[92,2,119,2],[120,1,147,1],[120,2,147,2],[148,1,162,1],[148,2,162,2],[181,1,198,1],[181,2,198,2],[181,3,198,3],[181,4,198,4],[181,5,198,5],[148,3,162,3],[148,4,162,4],[148,5,162,5],[163,1,180,1],[163,2,180,2],[266,3,283,3],[266,4,283,4],[266,5,283,5],[199,1,225,1],[199,2,225,2],[199,4,225,4],[199,5,225,5],[226,1,250,1],[226,2,250,2],[226,5,250,5],[339,1,359,1],[339,2,359,2],[1,4,1,5],[2,4,3,4],[2,5,3,5],[284,1,317,1],[284,2,317,2],[318,1,338,1],[318,2,338,2],[318,3,338,3],[318,5,338,5],[251,1,265,1],[251,2,265,2],[251,5,265,5],[266,1,283,1],[266,2,283,2]]}
[]
[null,"Scope Number","Alcance Sectorial","Metodologias","Aprobadas",null,"DOEs accredited for validation","DOEs accredited for verification"]
[{"$nulls":4},"Pequeña escala","Consolidadas"]
[]
[null,1,{"$f":"+'Selecc Metod 1'!B7","v":"Industria Energética (Fuente Renovable y NO renovable"},"AM0007","AMS-I.A.","ACM0001","4KES","4KES"]
[null,null,null,"AM0019","AMS-I.B.","ACM0002","AENOR","AENOR"]
[null,null,null,"AM0026","AMS-I.C.","ACM0006","BVCH","BVCH"]
[null,null,null,"AM0035","AMS-I.D.","ACM0007","BVI","BVI"]
[null,null,null,"AM0036","AMS-I.E.","ACM0009","CCCI","CCCI"]
[null,null,null,"AM0044","AMS-I.F.","ACM0011","CCSC","CCSC"]
[null,null,null,"AM0045","AMS-I.G.","ACM0012","CEC","CEC"]
[null,null,null,"AM0048","AMS-I.H.","ACM0013","CEPREI","CEPREI"]
[null,null,null,"AM0049","AMS-I.I.","ACM0014","CQC","CQC"]
[null,null,null,"AM0052","AMS-I.J.","ACM0017","CRA","CRA"]
[null,null,null,"AM0053","AMS-I.K.","ACM0018","CTC","CTC"]
[null,null,null,"AM0055","AMS-I.L.","ACM0020","CTI","CTI"]
[null,null,null,"AM0056","AMS-I.M.","ACM0022","Carbon Check","Carbon Check"]
[null,null,null,"AM0058","AMS-II.B.","ACM0023","DTSUS","DTSUS"]
[null,null,null,"AM0061","AMS-III.AG.","ACM0024","EPIC","EPIC"]
[null,null,null,"AM0062","AMS-III.AH.","ACM0025","ERM CVS","ERM CVS"]
[null,null,null,"AM0069","AMS-III.AM.","ACM0026","Earthood","Earthood"]
[null,null,null,"AM0072","AMS-III.AR.",null,"GHD","GHD"]
[null,null,null,"AM0074","AMS-III.B.",null,"HKQAA","HKQAA"]
[null,null,null,"AM0075","AMS-III.BL.",null,"ICONTEC","ICONTEC"]
[null,null,null,"AM0076","AMS-III.G.",null,"JQA","JQA"]
[null,null,null,"AM0077","AMS-III.H.",null,"KBS","KBS"]
[null,null,null,"AM0081",null,null,"KEA","KEA"]
[null,null,null,"AM0084",null,null,"KEMCO","KEMCO"]
[null,null,null,"AM0094",null,null,"KFQ","KFQ"]
[null,null,null,"AM0095",null,null,"KSA","KSA"]
[null,null,null,"AM0098",null,null,"KTR","KTR"]
[null,null,null,"AM0099",null,null,"LGAI Tech. Center S.A","LGAI Tech. Center S.A"]
[null,null,null,"AM0100",null,null,"LRQA","LRQA"]
[null,null,null,"AM0103",null,null,"MASCI","MASCI"]
[null,null,null,"AM0104",null,null,"RINA","RINA"]
[null,null,null,"AM0107",null,null,"Re-consult","Re-consult"]
[null,null,null,"AM0108",null,null,"TÜV NORD","TÜV NORD"]
[null,null,null,"AM0112",null,null,"TÜV SÜD","TÜV SÜD"]
[null,null,null,"AM0117",null,null,"URS","URS"]
[null,2,"Energy distribution","AM0067","AMS-II.A.",null,"4KES","4KES"]
[null,null,null,"AM0097","AMS-II.T.",null,"AENOR","AENOR"]
[null,null,null,"AM0118","AMS-III.AS.",null,"BVCH","BVCH"]
[{"$nulls":4},"AMS-III.AW.",null,"BVI","BVI"]
[{"$nulls":4},"AMS-III.BB.",null,"CCCI","CCCI"]
[{"$nulls":4},"AMS-III.BL.",null,"CCSC","CCSC"]
[{"$nulls":6},"CEC","CEC"]
[{"$nulls":6},"CEPREI","CEPREI"]
[{"$nulls":6},"CQC","CQC"]
[{"$nulls":6},"CTC","CTC"]
[{"$nulls":6},"CTI","CTI"]
[{"$nulls":6},"Carbon Check","Carbon Check"]
[{"$nulls":6},"DTSUS","DTSUS"]
[{"$nulls":6},"EPIC","EPIC"]
[{"$nulls":6},"ICONTEC","ICONTEC"]
[{"$nulls":6},"KBS","KBS"]
[{"$nulls":6},"KFQ","KFQ"]
[{"$nulls":6},"KSA","KSA"]
[{"$nulls":6},"LRQA","LRQA"]
[{"$nulls":6},"RINA","RINA"]
[{"$nulls":6},"Re-consult","Re-consult"]
[{"$nulls":6},"TÜV NORD","TÜV NORD"]
[{"$nulls":6},"TÜV SÜD","TÜV SÜD"]
[null,3,"Energy demand","AM0017","AMS-II.C.",null,"4KES","4KES"]
[null,null,null,"AM0018","AMS-II.D.",null,"AENOR","AENOR"]
[null,null,null,"AM0020","AMS-II.E.",null,"BVCH","BVCH"]
[null,null,null,"AM0046","AMS-II.F.",null,"BVI","BVI"]
[null,null,null,"AM0060","AMS-II.G.",null,"CCCI","CCCI"]
[null,null,null,"AM0068","AMS-II.J.",null,"CCSC","CCSC"]
[null,null,null,"AM0086","AMS-II.K.",null,"CEC","CEC"]
[null,null,null,"AM0088","AMS-II.L.",null,"CEPREI","CEPREI"]
[null,null,null,"AM0091","AMS-II.M.",null,"CQC","CQC"]
[null,null,null,"AM0105","AMS-II.N.",null,"CTC","CTC"]
[null,null,null,"AM0113","AMS-II.O.",null,"CTI","CTI"]
[null,null,null,"AM0120","AMS-II.P.",null,"Carbon Check","Carbon Check"]
[{"$nulls":4},"AMS-II.Q.",null,"DTSUS","DTSUS"]
[{"$nulls":4},"AMS-II.R.",null,"EPIC","EPIC"]
[{"$nulls":4},"AMS-II.S.",null,"ERM CVS","ERM CVS"]
[{"$nulls":4},"AMS-III.AE.",null,"Earthood","Earthood"]
[{"$nulls":4},"AMS-III.AL.",null,"ICONTEC","ICONTEC"]
[{"$nulls":4},"AMS-III.AV.",null,"JQA","JQA"]
[{"$nulls":4},"AMS-III.X.",null,"KBS","KBS"]
[{"$nulls":6},"KEA","KEA"]
[{"$nulls":6},"KEMCO","KEMCO"]
[{"$nulls":6},"KFQ","KFQ"]
[{"$nulls":6},"KSA","KSA"]
[{"$nulls":6},"KTR","KTR"]
[{"$nulls":6},"LGAI Tech. Center S.A","LGAI Tech. Center S.A"]
[{"$nulls":6},"LRQA","LRQA"]
[{"$nulls":6},"RINA","RINA"]
[{"$nulls":6},"Re-consult","Re-consult"]
[{"$nulls":6},"TÜV NORD","TÜV NORD"]
[{"$nulls":6},"TÜV SÜD","TÜV SÜD"]
[null,4,"Manufacturing industries","AM0007","AMS-II.D.","ACM0003","AENOR","AENOR"]
[null,null,null,"AM0036","AMS-II.H.","ACM0005","BVCH","BVCH"]
[null,null,null,"AM0049","AMS-II.I.","ACM0009","BVI","BVI"]
[null,null,null,"AM0055","AMS-III.AD.","ACM0012","CCCI","CCCI"]
[null,null,null,"AM0057","AMS-III.AN.","ACM0015","CCSC","CCSC"]
[null,null,null,"AM0070","AMS-III.BD.","ACM0021","CEC","CEC"]
[null,null,null,"AM0078","AMS-III.BG.",null,"CEPREI","CEPREI"]
[null,null,null,"AM0092","AMS-III.K.",null,"CQC","CQC"]
[null,null,null,"AM0095","AMS-III.N.",null,"CRA","CRA"]
[null,null,null,"AM0096","AMS-III.P.",null,"CTC","CTC"]
[null,null,null,"AM0106","AMS-III.Q.",null,"CTI","CTI"]
[null,null,null,"AM0109","AMS-III.V.",null,"Carbon Check","Carbon Check"]
[null,null,null,"AM0111","AMS-III.Z.",null,"EPIC","EPIC"]
[null,null,null,"AM0114",null,null,"ERM CVS","ERM CVS"]
[null,null,null,"AM0115",null,null,"Earthood","Earthood"]
[{"$nulls":6},"GHD","GHD"]
[{"$nulls":6},"JQA","JQA"]
[{"$nulls":6},"KBS","KBS"]
[{"$nulls":6},"KEA","KEA"]
[{"$nulls":6},"KEMCO","KEMCO"]
[{"$nulls":6},"KFQ","KFQ"]
[{"$nulls":6},"KSA","KSA"]
[{"$nulls":6},"KTR","KTR"]
[{"$nulls":6},"LRQA","LRQA"]
[{"$nulls":6},"RINA","RINA"]
[{"$nulls":6},"Re-consult","Re-consult"]
[{"$nulls":6},"TÜV NORD","TÜV NORD"]
[{"$nulls":6},"TÜV SÜD","TÜV SÜD"]
[null,5,"Chemical industries","AM0021","AMS-I.H.","ACM0017","4KES","4KES"]
[null,null,null,"AM0027","AMS-III.AC.","ACM0019","AENOR","AENOR"]
[null,null,null,"AM0028","AMS-III.AI.",null,"BVCH","BVCH"]
[null,null,null,"AM0037","AMS-III.AK.",null,"BVI","BVI"]
[null,null,null,"AM0050","AMS-III.J.",null,"CCCI","CCCI"]
[null,null,null,"AM0053","AMS-III.M.",null,"CCSC","CCSC"]
[null,null,null,"AM0063","AMS-III.O.",null,"CEC","CEC"]
[null,null,null,"AM0069",null,null,"CEPREI","CEPREI"]
[null,null,null,"AM0075",null,null,"CQC","CQC"]
[null,null,null,"AM0081",null,null,"CRA","CRA"]
[null,null,null,"AM0089",null,null,"CTI","CTI"]
[null,null,null,"AM0098",null,null,"Carbon Check","Carbon Check"]
[null,null,null,"AM0114",null,null,"DTSUS","DTSUS"]
[null,null,null,"AM0115",null,null,"EPIC","EPIC"]
[{"$nulls":6},"ERM CVS","ERM CVS"]
[{"$nulls":6},"Earthood","Earthood"]
[{"$nulls":6},"GHD","GHD"]
[{"$nulls":6},"JQA","JQA"]
[{"$nulls":6},"KBS","KBS"]
[{"$nulls":6},"KEA","KEA"]
[{"$nulls":6},"KEMCO","KEMCO"]
[{"$nulls":6},"KFQ","KFQ"]
[{"$nulls":6},"KSA","KSA"]
[{"$nulls":6},"KTR","KTR"]
[{"$nulls":6},"LRQA","LRQA"]
[{"$nulls":6},"RINA","RINA"]
[{"$nulls":6},"TÜV NORD","TÜV NORD"]
[{"$nulls":6},"TÜV SÜD","TÜV SÜD"]
[null,6,"Construction",null,"AMS-III.BH.",null,"4KES","4KES"]
[{"$nulls":6},"AENOR","AENOR"]
[{"$nulls":6},"BVCH","BVCH"]
[{"$nulls":6},"CCCI","CCCI"]
[{"$nulls":6},"CCSC","CCSC"]
[{"$nulls":6},"CEC","CEC"]
[{"$nulls":6},"CQC","CQC"]
[{"$nulls":6},"CTC","CTC"]
[{"$nulls":6},"CTI","CTI"]
[{"$nulls":6},"EPIC","EPIC"]
[{"$nulls":6},"Earthood","Earthood"]
[{"$nulls":6},"LRQA","LRQA"]
[{"$nulls":6},"RINA","RINA"]
[{"$nulls":6},"TÜV NORD","TÜV NORD"]
[{"$nulls":6},"TÜV SÜD","TÜV SÜD"]
[null,7,"Transport","AM0031","AMS-I.M.","ACM0016","AENOR","AENOR"]
[null,null,null,"AM0090","AMS-III.AA.","ACM0017","BVCH","BVCH"]
[null,null,null,"AM0101","AMS-III.AK.",null,"BVI","BVI"]
[null,null,null,"AM0110","AMS-III.AP.",null,"CCCI","CCCI"]
[null,null,null,"AM0116","AMS-III.AQ.",null,"CCSC","CCSC"]
[{"$nulls":4},"AMS-III.AT.",null,"CEC","CEC"]
[{"$nulls":4},"AMS-III.AY.",null,"CQC","CQC"]
[{"$nulls":4},"AMS-III.BC.",null,"CTI","CTI"]
[{"$nulls":4},"AMS-III.BM.",null,"EPIC","EPIC"]
[{"$nulls":4},"AMS-III.BN.",null,"Earthood","Earthood"]
[{"$nulls":4},"AMS-III.BO.",null,"ICONTEC","ICONTEC"]
[{"$nulls":4},"AMS-III.C.",null,"KBS","KBS"]
[{"$nulls":4},"AMS-III.S.",null,"KEA","KEA"]
[{"$nulls":4},"AMS-III.T.",null,"KEMCO","KEMCO"]
[{"$nulls":4},"AMS-III.U.",null,"LRQA","LRQA"]
[{"$nulls":6},"RINA","RINA"]
[{"$nulls":6},"TÜV NORD","TÜV NORD"]
[{"$nulls":6},"TÜV SÜD","TÜV SÜD"]
[null,8,"Mining/mineral production",null,null,"ACM0008","AENOR","AENOR"]
[{"$nulls":6},"BVCH","BVCH"]
[{"$nulls":6},"BVI","BVI"]
[{"$nulls":6},"CCCI","CCCI"]
[{"$nulls":6},"CCSC","CCSC"]
[{"$nulls":6},"CEC","CEC"]
[{"$nulls":6},"CEPREI","CEPREI"]
[{"$nulls":6},"CQC","CQC"]
[{"$nulls":6},"CRA","CRA"]
[{"$nulls":6},"CTI","CTI"]
[{"$nulls":6},"Carbon Check","Carbon Check"]
[{"$nulls":6},"EPIC","EPIC"]
[{"$nulls":6},"ERM CVS","ERM CVS"]
[{"$nulls":6},"GHD","GHD"]
[{"$nulls":6},"KBS","KBS"]
[{"$nulls":6},"LRQA","LRQA"]
[{"$nulls":6},"TÜV NORD","TÜV NORD"]
[{"$nulls":6},"TÜV SÜD","TÜV SÜD"]
[null,9,"Metal production","AM0030",null,null,"AENOR","AENOR"]
[null,null,null,"AM0038",null,null,"BVCH","BVCH"]
[null,null,null,"AM0059",null,null,"BVI","BVI"]
[null,null,null,"AM0065",null,null,"CCCI","CCCI"]
[null,null,null,"AM0066",null,null,"CCSC","CCSC"]
[null,null,null,"AM0068",null,null,"CEC","CEC"]
[null,null,null,"AM0082",null,null,"CEPREI","CEPREI"]
[null,null,null,"AM0109",null,null,"CQC","CQC"]
[null,null,null,"AM0111",null,null,"CRA","CRA"]
[{"$nulls":6},"CTC","CTC"]
[{"$nulls":6},"CTI","CTI"]
[{"$nulls":6},"Carbon Check","Carbon Check"]
[{"$nulls":6},"EPIC","EPIC"]
[{"$nulls":6},"ERM CVS","ERM CVS"]
[{"$nulls":6},"Earthood","Earthood"]
[{"$nulls":6},"GHD","GHD"]
[{"$nulls":6},"KBS","KBS"]
[{"$nulls":6},"KEA","KEA"]
[{"$nulls":6},"KEMCO","KEMCO"]
[{"$nulls":6},"KFQ","KFQ"]
[{"$nulls":6},"KSA","KSA"]
[{"$nulls":6},"KTR","KTR"]
[{"$nulls":6},"LRQA","LRQA"]
[{"$nulls":6},"RINA","RINA"]
[{"$nulls":6},"Re-consult","Re-consult"]
[{"$nulls":6},"TÜV NORD","TÜV NORD"]
[{"$nulls":6},"TÜV SÜD","TÜV SÜD"]
[null,10,"Fugitive emissions from fuels (solid, oil and gas)","AM0009","AMS-III.BI.","ACM0008","AENOR","AENOR"]
[null,null,null,"AM0023","AMS-III.W.",null,"BVCH","BVCH"]
[null,null,null,"AM0037",null,null,"BVI","BVI"]
[null,null,null,"AM0043",null,null,"CCCI","CCCI"]
[null,null,null,"AM0064",null,null,"CCSC","CCSC"]
[null,null,null,"AM0077",null,null,"CEC","CEC"]
[{"$nulls":6},"CEPREI","CEPREI"]
[{"$nulls":6},"CQC","CQC"]
[{"$nulls":6},"CRA","CRA"]
[{"$nulls":6},"CTC","CTC"]
[{"$nulls":6},"CTI","CTI"]
[{"$nulls":6},"Carbon Check","Carbon Check"]
[{"$nulls":6},"DTSUS","DTSUS"]
[{"$nulls":6},"EPIC","EPIC"]
[{"$nulls":6},"ERM CVS","ERM CVS"]
[{"$nulls":6},"Earthood","Earthood"]
[{"$nulls":6},"GHD","GHD"]
[{"$nulls":6},"JQA","JQA"]
[{"$nulls":6},"KBS","KBS"]
[{"$nulls":6},"KSA","KSA"]
[{"$nulls":6},"KTR","KTR"]
[{"$nulls":6},"LRQA","LRQA"]
[{"$nulls":6},"RINA","RINA"]
[{"$nulls":6},"TÜV NORD","TÜV NORD"]
[{"$nulls":6},"TÜV SÜD","TÜV SÜD"]
[null,11,"Fugitive emissions from production and consumption of halocarbons and sulphur hexafluoride","AM0001","AMS-III.AB.",null,"AENOR","AENOR"]
[null,null,null,"AM0035","AMS-III.X.",null,"BVCH","BVCH"]
[null,null,null,"AM0071",null,null,"CCCI","CCCI"]
[null,null,null,"AM0078",null,null,"CEC","CEC"]
[null,null,null,"AM0079",null,null,"CQC","CQC"]
[null,null,null,"AM0092",null,null,"CTI","CTI"]
[null,null,null,"AM0096",null,null,"EPIC","EPIC"]
[null,null,null,"AM0119",null,null,"KEA","KEA"]
[{"$nulls":6},"KEMCO","KEMCO"]
[{"$nulls":6},"KFQ","KFQ"]
[{"$nulls":6},"KTR","KTR"]
[{"$nulls":6},"LRQA","LRQA"]
[{"$nulls":6},"RINA","RINA"]
[{"$nulls":6},"TÜV NORD","TÜV NORD"]
[{"$nulls":6},"TÜV SÜD","TÜV SÜD"]
[null,12,"Solvent use",null,null,null,"4KES","4KES"]
[{"$nulls":6},"AENOR","AENOR"]
[{"$nulls":6},"BVCH","BVCH"]
[{"$nulls":6},"BVI","BVI"]
[{"$nulls":6},"CCCI","CCCI"]
[{"$nulls":6},"CEC","CEC"]
[{"$nulls":6},"CQC","CQC"]
[{"$nulls":6},"CRA","CRA"]
[{"$nulls":6},"CTI","CTI"]
[{"$nulls":6},"DTSUS","DTSUS"]
[{"$nulls":6},"EPIC","EPIC"]
[{"$nulls":6},"GHD","GHD"]
[{"$nulls":6},"KBS","KBS"]
[{"$nulls":6},"KEA","KEA"]
[{"$nulls":6},"KEMCO","KEMCO"]
[{"$nulls":6},"LRQA","LRQA"]
[{"$nulls":6},"TÜV NORD","TÜV NORD"]
[{"$nulls":6},"TÜV SÜD","TÜV SÜD"]
[null,13,"Waste handling and disposal","AM0057","AMS-III.AF.","ACM0001","4KES","4KES"]
[null,null,null,"AM0073","AMS-III.AJ.","ACM0010","AENOR","AENOR"]
[null,null,null,"AM0080","AMS-III.AO.","ACM0014","BVCH","BVCH"]
[null,null,null,"AM0083","AMS-III.AX.","ACM0022","BVI","BVI"]
[null,null,null,"AM0089","AMS-III.BA.","ACM0024","CCCI","CCCI"]
[null,null,null,"AM0093","AMS-III.BE.",null,"CCSC","CCSC"]
[null,null,null,"AM0112","AMS-III.BJ.",null,"CEC","CEC"]
[{"$nulls":4},"AMS-III.D.",null,"CEPREI","CEPREI"]
[{"$nulls":4},"AMS-III.E.",null,"CQC","CQC"]
[{"$nulls":4},"AMS-III.F.",null,"CRA","CRA"]
[{"$nulls":4},"AMS-III.G.",null,"CTC","CTC"]
[{"$nulls":4},"AMS-III.H.",null,"CTI","CTI"]
[{"$nulls":4},"AMS-III.I.",null,"Carbon Check","Carbon Check"]
[{"$nulls":4},"AMS-III.L.",null,"DTSUS","DTSUS"]
[{"$nulls":4},"AMS-III.Y.",null,"EPIC","EPIC"]
[{"$nulls":6},"ERM CVS","ERM CVS"]
[{"$nulls":6},"Earthood","Earthood"]
[{"$nulls":6},"GHD","GHD"]
[{"$nulls":6},"ICONTEC","ICONTEC"]
[{"$nulls":6},"JQA","JQA"]
[{"$nulls":6},"KBS","KBS"]
[{"$nulls":6},"KEA","KEA"]
[{"$nulls":6},"KEMCO","KEMCO"]
[{"$nulls":6},"KFQ","KFQ"]
[{"$nulls":6},"KSA","KSA"]
[{"$nulls":6},"KTR","KTR"]
[{"$nulls":6},"LGAI Tech. Center S.A","LGAI Tech. Center S.A"]
[{"$nulls":6},"LRQA","LRQA"]
[{"$nulls":6},"MASCI","MASCI"]
[{"$nulls":6},"RINA","RINA"]
[{"$nulls":6},"Re-consult","Re-consult"]
[{"$nulls":6},"TÜV NORD","TÜV NORD"]
[{"$nulls":6},"TÜV SÜD","TÜV SÜD"]
[{"$nulls":6},"URS","URS"]
[null,14,"Afforestation and reforestation","AR-AM0014","AR-AMS0003","AR-ACM0003","4KES","4KES"]
[{"$nulls":4},"AR-AMS0007",null,"AENOR","AENOR"]
[{"$nulls":6},"BVCH","BVCH"]
[{"$nulls":6},"BVI","BVI"]
[{"$nulls":6},"CCCI","CCCI"]
[{"$nulls":6},"CCSC","CCSC"]
[{"$nulls":6},"CEC","CEC"]
[{"$nulls":6},"CQC","CQC"]
[{"$nulls":6},"CTC","CTC"]
[{"$nulls":6},"CTI","CTI"]
[{"$nulls":6},"Carbon Check","Carbon Check"]
[{"$nulls":6},"EPIC","EPIC"]
[{"$nulls":6},"Earthood","Earthood"]
[{"$nulls":6},"ICONTEC","ICONTEC"]
[{"$nulls":6},"JQA","JQA"]
[{"$nulls":6},"KBS","KBS"]
[{"$nulls":6},"KEA","KEA"]
[{"$nulls":6},"KEMCO","KEMCO"]
[{"$nulls":6},"RINA","RINA"]
[{"$nulls":6},"TÜV NORD","TÜV NORD"]
[{"$nulls":6},"TÜV SÜD","TÜV SÜD"]
[null,15,"Agriculture","AM0073","AMS-I.H.","ACM0010","4KES","4KES"]
[null,null,null,"AM0089","AMS-III.A.","ACM0017","AENOR","AENOR"]
[{"$nulls":4},"AMS-III.AK.",null,"BVCH","BVCH"]
[{"$nulls":4},"AMS-III.AU.",null,"BVI","BVI"]
[{"$nulls":4},"AMS-III.BF.",null,"CCCI","CCCI"]
[{"$nulls":4},"AMS-III.BK.",null,"CEC","CEC"]
[{"$nulls":4},"AMS-III.R.",null,"CEPREI","CEPREI"]
[{"$nulls":6},"CQC","CQC"]
[{"$nulls":6},"CTC","CTC"]
[{"$nulls":6},"CTI","CTI"]
[{"$nulls":6},"DTSUS","DTSUS"]
[{"$nulls":6},"EPIC","EPIC"]
[{"$nulls":6},"Earthood","Earthood"]
[{"$nulls":6},"KBS","KBS"]
[{"$nulls":6},"KEA","KEA"]
[{"$nulls":6},"KEMCO","KEMCO"]
[{"$nulls":6},"KFQ","KFQ"]
[{"$nulls":6},"RINA","RINA"]
[{"$nulls":6},"Re-consult","Re-consult"]
[{"$nulls":6},"TÜV NORD","TÜV NORD"]
[{"$nulls":6},"TÜV SÜD","TÜV SÜD"]

{"sheet":"Selecc Metod 1","index":4,"n_rows":54,"n_cols":7,"rows_kept":54,"cut":false,"hidden":false,"merged":[[6,2,23,2],[24,2,30,2],[31,2,45,2],[46,2,53,2],[6,1,53,1]]}
[]
[]
[]
[{"$nulls":4},"Gran Escala"]
[{"$nulls":4},"Pequeña escala"]
[null,"Alcance Sectorial","Tipo","Suministro y generación de electricidad","Energía para la industria","Transporte de combustible","Energía para domicilios y edificios"]
[null,"Industria Energética (Fuente Renovable y NO renovable","Energía Renovable","AM0007","AM0007","AM0089","AM0053"]
[null,null,null,"AM0019","AM0036","ACM0017","AM0069"]
[null,null,null,"AM0026","AM0053",null,"AM0072"]
[null,null,null,"AM0052","AM0069",null,"AM0075"]
[null,null,null,"AM0100","AM0075",null,"AM0094"]
[null,null,null,"AM0103","AM0089",null,"AM0094"]
[null,null,null,"ACM0002","ACM0006",null,"ACM0024"]
[null,null,null,"ACM0006","ACM0020",null,"AMS-I.A"]
[null,null,null,"ACM0018","ACM0022",null,"AMS-I.B"]
[null,null,null,"ACM0020","ACM0024",null,"AMS-I.C"]
[null,null,null,"ACM0022",{"$f":"+D19","v":"AMS-I.C"},null,"AMS-I.E"]
[null,null,null,"AMS-I.A",{"$f":"+D21","v":"AMS-I.F"},null,{"$f":"+D21","v":"AMS-I.F"}]
[null,null,null,"AMS-I.C",{"$f":"+D22","v":"AMS-I.G"},null,{"$f":"+D22","v":"AMS-I.G"}]
[null,null,null,"AMS-I.D",{"$f":"+D23","v":"AMS-I.H"},null,{"$f":"+D23","v":"AMS-I.H"}]
[null,null,null,"AMS-I.F",null,null,"AMS-I.I"]
[null,null,null,"AMS-I.G",null,null,"AMS-I.J"]
[null,null,null,"AMS-I.H",null,null,"AMS-I.K"]
[null,null,null,"AMS-I.M",null,null,"AMS-I.L"]
[null,null,"Electricidad baja en carbono","AM0045","AM0099"]
[null,null,null,"AM0074","ACM0025"]
[null,null,null,"AM0099","ACM0026"]
[null,null,null,"AM0104"]
[null,null,null,"AM0108"]
[null,null,null,"ACM0025"]
[null,null,null,"ACM0026"]
[null,null,"Eficiencia Energética","AM0048",{"$f":"+D32","v":"AM0048"},null,"AM0058"]
[null,null,null,"AM0049",{"$f":"+D33","v":"AM0049"},null,"AM0048"]
[null,null,null,"AM0061","AM0055",null,"AM0084"]
[null,null,null,"AM0062","AM0056",null,"AM0107"]
[null,null,null,"AM0076","AM0076"]
[null,null,null,"AM0084","AM0098"]
[null,null,null,"AM0107","AM0107"]
[null,null,null,"ACM0006","ACM0006"]
[null,null,null,"ACM0007","ACM0012"]
[null,null,null,"ACM0012","ACM0018"]
[null,null,null,"ACM0013","ACM0023"]
[null,null,null,"ACM0018"]
[null,null,null,"AMS-II.B"]
[null,null,null,"AMS-II.H"]
[null,null,null,"AMS-II.AL"]
[null,null,"Cambio de Combustible","AM0049",{"$f":"+D47","v":"AM0049"},null,"AM0081"]
[null,null,null,"ACM0006","AM0056"]
[null,null,null,"ACM0011","AM0069"]
[null,null,null,"ACM0018","AM0081"]
[null,null,null,"AMS-I.M","ACM0006"]
[null,null,null,"AMS-III.AG","ACM0009"]
[null,null,null,"AMS-III.AH","ACM0018"]
[null,null,null,"AMS-III.AM",{"$f":"+D54","v":"AMS-III.AM"}]

{"sheet":"Selecc Metod 2","index":5,"n_rows":31,"n_cols":7,"rows_kept":31,"cut":false,"hidden":false,"merged":[[6,1,30,1],[6,2,23,2],[24,2,30,2]]}
[]
[]
[]
[null,null,"Gran Escala"]
[null,null,"Pequeña escala"]
[null,"Alcance Sectorial","Tipo","Suministro y generación de electricidad","Actividades del Proyecto","Proyectos Solares (son <= a 5 MW)","Proyectos de interconexión de un SA"]
[null,"Industria Energética (Fuente Renovable y NO renovable","Energía Renovable","AM0007","Renovación y cambio de combustible de proyectos de cogeneración de biomasa renovable conectados a la RED","No aplica","No aplica"]
[null,null,null,"AM0019","Generación de electricidad a partir de fuentes de energía renovables, como la eólica, proyectos geotérmicos, solares, hidroeléctricos, de olas y / o mareas que desplazan la electricidad producida de una planta específica de combustibles fósiles","No aplica","No aplica"]
[null,null,null,"AM0026","Adiciones de capacidad (ya sea a través de la instalación de nuevas, o la modificación de plantas de energía existentes) que utilizan energía renovable","No aplica","No aplica"]
[null,null,null,"AM0052","Aumento de la generación anual de electricidad mediante la introducción de un soporte de Sistema de Control (DSS) que optimiza la operación","No aplica","No aplica"]
[null,null,null,"AM0100","Implementación de proyectos de Ciclo Combinado Solar Integrado (ISCC).","No aplica","No aplica"]
[null,null,null,"AM0103","Generación de energía utilizando fuentes de energía renovables conectadas a una nueva o existente RED aislada","No aplica","No aplica"]
[null,null,null,"ACM0002","Actualización, rehabilitación (o renovación), reemplazo o adición de capacidad de un planta de energía existente o construcción y operación de una nueva planta / unidad de energía que utiliza fuentes de energía renovables y suministra electricidad a la red","No aplica","No aplica"]
[null,null,null,"ACM0006","Generación de energía y calor en centrales térmicas, incluidas plantas de cogeneración utilizando biomasa","No aplica","No aplica"]
[null,null,null,"ACM0018","Generación de energía utilizando biomasa como combustible, en nuevas plantas de energía basadas en biomasa en sitios donde no se produce energía","No aplica","No aplica"]
[null,null,null,"ACM0020","Operación en ciclo simple de equipo de generación de calor con quema de residuos de biomasa","No aplica","No aplica"]
[null,null,null,"ACM0022","El proyecto involucra uno o una combinación de tratamientos de residuos","No aplica","No aplica"]
[null,null,null,"AMS-I.A","Generación de electricidad renovable, como la gasificación, solar, hidráulica, eólica o de biomasa, implementada en un sistema aislado","Aplica","No aplica"]
[null,null,null,"AMS-I.C","Producción de energía térmica utilizando fuentes de energía renovables, incluida la biomasa. cogeneración y / o trigeneración.","No aplica","No aplica"]
[null,null,null,"AMS-I.D","Construcción y operación de una planta de energía que utiliza fuentes de energía renovables y suministra electricidad a la red","No aplica","No aplica"]
[null,null,null,"AMS-I.F","Producción de electricidad utilizando tecnologías de energía renovable como la fotovoltaica, hidroeléctrica, etc., que suministra a los usuarios","Aplica","No aplica"]
[null,null,null,"AMS-I.G","Producción de aceite vegetal que se utiliza para la generación de energía térmica, mecánica y eléctrica.","No aplica","No aplica"]
[null,null,null,"AMS-I.H","Producción de biocombustible a partir de residuos de biomasa","No aplica","No aplica"]
[null,null,null,"AMS-I.M","Producción de electricidad mediante tecnología solar fotovoltaica que suministra energía eléctrica para aeronaves y aeropuertos","No aplica","No aplica"]
[null,null,"Electricidad baja en carbono","AM0045","Expansión de una red interconectada para suministrar electricidad generada por unidades más eficiente y medios menos intensivos en carbono para un sistema de energía eléctrica aislado.","No aplica","Aplica"]
[null,null,null,"AM0074","Construcción y operación de una planta de energía que suministra electricidad a la red y utiliza gas permeado (separado con membranas)","No aplica","No aplica"]
[null,null,null,"AM0099","Instalación de una nueva turbina de gas de gas natural en un sitio donde existe un ciclo combinado y suministrar a la RED","No aplica","No aplica"]
[null,null,null,"AM0104","Construcción de una o varias líneas de interconexión nuevas para conectar dos redes ","No aplica","No aplica"]
[null,null,null,"AM0108","Construcción de una o varias líneas de interconexión nuevas para conectar dos redes y tener un despacho único","No aplica","No aplica"]
[null,null,null,"ACM0025","Instalación de una central eléctrica de gas natural que suministra electricidad a una red.","No aplica","No aplica"]
[null,null,null,"ACM0026","Construcción y operación de una planta de cogeneración de combustibles fósiles que suministra electricidad","No aplica","No aplica"]

{"sheet":"Selecc Metod 3","index":6,"n_rows":24,"n_cols":7,"rows_kept":24,"cut":false,"hidden":false,"merged":[[6,1,23,1],[6,2,23,2]]}
[]
[]
[]
[null,null,"Gran Escala"]
[null,null,"Pequeña escala"]
[null,"Alcance Sectorial","Tipo","Energía para domicilios y edificios","Actividades del Proyecto","Proyectos Solares (son <= a 5 MW)","Proyectos de interconexión de un SA"]
[null,"Industria Energética (Fuente Renovable y NO renovable","Energía Renovable","AM0053","Recuperación de biogás generado por descomposición anaeróbica de materia orgánica en sistemas de tratamiento de aguas residuales","No aplica","No aplica"]
[null,null,null,"AM0069","Captura de biogás en una instalación de tratamiento de aguas residuales o en un vertedero","No aplica","No aplica"]
[null,null,null,"AM0072","Introducción de un sistema centralizado de suministro de calor geotérmico para la calefacción de espacios en edificios","No aplica","No aplica"]
[null,null,null,"AM0075","Procesar y mejorar el biogás recogido de los sitios productores de biogás en un nuevo planta de procesamiento","No aplica","No aplica"]
[null,null,null,"AM0094","Distribución de estufas y / o calentadores a base de biomasa.","No aplica","No aplica"]
[null,null,null,"ACM0022","El proyecto involucra una o una combinación de las siguientes opciones de tratamiento de residuos: Proceso de compostaje en condiciones aeróbicas","No aplica","No aplica"]
[null,null,null,"ACM0024","Actividades del proyecto donde los desechos orgánicos (por ejemplo, vinaza, RSU orgánicos, etc.) son tratados por digestion anearobica","No aplica","No aplica"]
[null,null,null,"AMS-I.A","Generación de electricidad renovable, como la gasificación, solar, hidráulica, eólica o de biomasa, implementada en un sistema aislado","Aplica","No aplica"]
[null,null,null,"AMS-I.B","Instalación de tecnologías de energía renovable como la energía hidroeléctrica, eólica y otras tecnologías que proporcionan energía mecánica que de otro modo habrían sido suministrado con energía a base de combustibles fósiles (sistemas de bombeo)","No aplica","No aplica"]
[null,null,null,"AMS-I.C","Producción de energía térmica utilizando fuentes de energía renovables, incluida la biomasa. cogeneración y / o trigeneración.","No aplica","No aplica"]
[null,null,null,"AMS-I.E","Generación de energía térmica mediante la introducción de tecnologías de energía renovable para usuarios finales. que desplazan el uso de biomasa no renovable","No aplica","No aplica"]
[null,null,null,"AMS-I.F","Producción de electricidad utilizando tecnologías de energía renovable como la fotovoltaica, hidroeléctrica, etc., que suministra a los usuarios","Aplica","No aplica"]
[null,null,null,"AMS-I.G","Producción de aceite vegetal que se utiliza para la generación de energía térmica, mecánica y eléctrica.","No aplica","No aplica"]
[null,null,null,"AMS-I.H","Producción de biocombustible a partir de residuos de biomasa","No aplica","No aplica"]
[null,null,null,"AMS-I.I","Actividades para la generación de energía térmica renovable utilizando biomasa renovable o biogás","No aplica","No aplica"]
[null,null,null,"AMS-I.J","La instalación de sistemas de calentamiento solar de agua (SWH) residenciales y comerciales para producción de agua caliente","No aplica","No aplica"]
[null,null,null,"AMS-I.K","Actividades de proyectos que introducen cocinas solares a hogares individuales para ser utilizadas propósito de cocina doméstica.","No aplica","No aplica"]
[null,null,null,"AMS-I.L","Después de la implementación del proyecto, las comunidades rurales reciben electricidad de sistemas basados ​​en renovables","No aplica","No aplica"]

{"sheet":"Selecc Metod 4","index":7,"n_rows":9,"n_cols":8,"rows_kept":9,"cut":false,"hidden":false,"merged":[[6,1,8,1],[6,2,7,2]]}
[]
[]
[]
[null,null,"Gran Escala"]
[null,null,"Pequeña escala"]
[null,"Alcance Sectorial","Tipo",{"$f":"+'Selecc Metod 2'!D6","v":"Suministro y generación de electricidad"},"Energía para domicilios y edificios","Actividades del Proyecto","Proyectos Solares (son <= a 5 MW)","Proyectos de interconexión de un SA"]
[null,{"$f":"+'Selecc Metod 2'!B7:B31","v":"Industria Energética (Fuente Renovable y NO renovable"},{"$f":"+'Selecc Metod 2'!C7:C24","v":"Energía Renovable"},{"$f":"+'Selecc Metod 2'!D18","v":"AMS-I.A"},"AMS-I.A","Generación de electricidad renovable, como la gasificación, solar, hidráulica, eólica o de biomasa, implementada en un sistema aislado","Aplica","No aplica"]
[null,null,null,{"$f":"+'Selecc Metod 2'!D21","v":"AMS-I.F"},"AMS-I.F","Producción de electricidad utilizando tecnologías de energía renovable como la fotovoltaica, hidroeléctrica, etc., que suministra a los usuarios","Aplica","No aplica"]
[null,null,"Electricidad baja en carbono",{"$f":"+'Selecc Metod 2'!D25","v":"AM0045"},null,"Producción de aceite vegetal que se utiliza para la generación de energía térmica, mecánica y eléctrica.","No aplica","Aplica"]